bitfinex/quotes_BTCUSD_20230103
["timestamp","ask_amount","ask_price","bid_price","bid_amount"]
[1672759163961,0.30599953,16659.0,16658.0,0.02450197]
[1672759164219,1.22254553,16659.0,16658.0,0.02450197]
[1672759164472,1.52254553,16659.0,16658.0,0.02450197]
[1672759164715,2.12282153,16659.0,16658.0,0.02450197]
[1672759165217,2.43938322,16659.0,16658.0,0.02450197]
[1672759165593,2.36675985,16659.0,16658.0,0.02450197]
[1672759165740,2.36675985,16659.0,16658.0,0.03150197]
[1672759165741,2.70590486,16659.0,16658.0,0.03150197]
[1672759166004,2.46196654,16659.0,16658.0,0.03150197]
[1672759166260,2.64063976,16659.0,16658.0,0.02450197]
[1672759166524,2.46196654,16659.0,16658.0,0.02450197]
[1672759166795,2.46196654,16659.0,16653.0,1.18168765]
[1672759167039,2.6839493,16659.0,16658.0,0.01]
[1672759167290,3.27944473,16659.0,16654.0,1.19317337]
[1672759167557,0.91627,16658.0,16656.0,1.20586575]
[1672759167824,0.600348,16657.0,16656.0,1.20586575]
[1672759168053,1.200696,16657.0,16656.0,0.9]
[1672759168328,0.0120077,16657.0,16656.0,1.27998264]
[1672759168580,0.0120077,16657.0,16656.0,1.25002508]
[1672759168827,0.00600385,16657.0,16656.0,0.9]
[1672759169088,0.0120077,16657.0,16656.0,1.448701]
[1672759169355,0.0120077,16657.0,16656.0,2.39763135]
[1672759169356,0.00600385,16657.0,16656.0,2.39763135]
[1672759169746,0.0120077,16657.0,16656.0,2.89763135]
[1672759169749,0.0120077,16657.0,16656.0,2.89963135]
[1672759169976,0.0120077,16657.0,16656.0,2.89763135]
[1672759170678,0.00600385,16657.0,16656.0,3.39763135]
[1672759171074,0.0120077,16657.0,16656.0,3.39763135]
[1672759171297,0.00600385,16657.0,16656.0,3.93451703]
[1672759171514,0.0120077,16657.0,16656.0,4.53490103]
[1672759171756,0.00600385,16657.0,16656.0,4.53490103]
[1672759172207,0.00600385,16657.0,16656.0,3.28493491]
[1672759172636,0.0120077,16657.0,16656.0,3.28493491]
[1672759173069,0.01801155,16657.0,16656.0,3.28493491]
[1672759173320,0.0120077,16657.0,16656.0,2.32293491]
[1672759173796,0.0120077,16657.0,16656.0,2.38493491]
[1672759174014,0.0120077,16657.0,16656.0,1.33606691]
[1672759174181,0.00600385,16657.0,16656.0,1.33606691]
[1672759174408,0.00600385,16657.0,16656.0,1.28736591]
[1672759174659,0.01801155,16657.0,16656.0,1.28736591]
[1672759174932,0.0120077,16657.0,16656.0,1.28736591]
[1672759175142,0.01801155,16657.0,16656.0,1.75076102]
[1672759175355,0.01801155,16657.0,16656.0,2.051451]
[1672759175356,0.0120077,16657.0,16656.0,2.051451]
[1672759175511,0.0120077,16657.0,16656.0,2.43577423]
[1672759175721,0.00600385,16657.0,16656.0,3.63660458]
[1672759176149,0.0120077,16657.0,16656.0,3.63654223]
[1672759176370,0.00600385,16657.0,16656.0,3.63654223]
[1672759176774,0.00600385,16657.0,16656.0,3.63660458]
[1672759177041,0.00600385,16657.0,16656.0,4.13660458]
[1672759177258,0.0120077,16657.0,16656.0,4.14504223]
[1672759177741,0.00600385,16657.0,16656.0,4.14504223]
[1672759178743,0.00600385,16657.0,16656.0,1.91979735]
[1672759178967,0.00600385,16657.0,16656.0,0.962]
[1672759179222,0.0120077,16657.0,16656.0,1.24687396]
[1672759179431,0.00600385,16657.0,16656.0,1.24687396]
[1672759179662,0.0120077,16657.0,16656.0,1.24687396]
[1672759179898,0.00600385,16657.0,16656.0,1.24687396]
[1672759180847,1.24987619,16658.0,16656.0,1.24687396]
[1672759181352,0.00600385,16657.0,16656.0,1.24687396]
[1672759181588,0.00600385,16657.0,16656.0,1.18487396]
[1672759181831,0.60635185,16657.0,16656.0,1.18487396]
[1672759182053,1.57304944,16657.0,16656.0,0.9]
[1672759182298,1.87304944,16657.0,16656.0,0.962]
[1672759182516,2.48931944,16657.0,16656.0,0.962]
[1672759182989,2.48931944,16657.0,16656.0,0.9]
[1672759182990,1.87304944,16657.0,16656.0,0.9]
[1672759183221,3.08966744,16657.0,16656.0,0.9]
[1672759183454,3.08966744,16657.0,16656.0,0.902]
[1672759183931,3.03228459,16657.0,16656.0,0.002]
[1672759184177,3.03228459,16657.0,16653.0,0.02450197]
[1672759184178,0.00256836,16655.0,16653.0,0.02450197]
[1672759184411,2.42364185,16654.0,16653.0,0.31347144]
[1672759184647,2.10737185,16654.0,16653.0,0.31347144]
[1672759184900,2.72364185,16654.0,16653.0,0.02450197]
[1672759185143,3.48054361,16654.0,16653.0,0.02450197]
[1672759185387,4.21458772,16654.0,16653.0,0.02450197]
[1672759185627,4.21458772,16654.0,16651.0,0.02082159]
[1672759185628,0.23328634,16652.0,16651.0,0.02082159]
[1672759185874,3.55767219,16652.0,16651.0,0.02082159]
[1672759186133,3.55767219,16652.0,16651.0,0.02022159]
[1672759186843,3.64567219,16652.0,16651.0,0.02622159]
[1672759187843,3.45295395,16652.0,16651.0,0.02622159]
[1672759188111,2.83602419,16652.0,16651.0,0.02615499]
[1672759188636,2.4990094,16652.0,16651.0,0.02615499]
[1672759188885,3.1152794,16652.0,16651.0,0.02615499]
[1672759191321,2.4990094,16652.0,16651.0,0.02615499]
[1672759191562,3.1152794,16652.0,16651.0,0.02615499]
[1672759192762,2.83602419,16652.0,16651.0,0.02615499]
[1672759193008,3.20967601,16652.0,16651.0,0.02615499]
[1672759193498,3.62123774,16652.0,16651.0,0.02615499]
[1672759193737,3.32987601,16652.0,16651.0,0.02615499]
[1672759193987,0.5,16651.0,16648.0,0.02508947]
[1672759194218,3.48867,16650.0,16648.0,0.02008947]
[1672759194459,1.15832722,16649.0,16647.0,0.00015]
[1672759194698,3.318958,16648.0,16647.0,0.00015]
[1672759194933,3.32496185,16648.0,16647.0,0.00015]
[1672759195392,3.66595804,16648.0,16647.0,0.00015]
[1672759195623,3.66595804,16648.0,16645.0,0.3376589]
[1672759195624,3.77775804,16648.0,16645.0,0.3376589]
[1672759195856,0.61627,16647.0,16645.0,0.3376589]
[1672759196093,3.6960555,16648.0,16644.0,0.9]
[1672759196094,2.72450585,16646.0,16644.0,0.9]
[1672759196402,0.96593294,16645.0,16643.0,0.25]
[1672759196630,2.718721,16644.0,16643.0,0.60160215]
[1672759196857,2.102451,16644.0,16643.0,0.35160215]
[1672759197131,1.82390785,16644.0,16642.0,1.15]
[1672759197358,1.20763785,16644.0,16643.0,0.1203624]
[1672759197626,1.50764254,16644.0,16643.0,0.49788605]
[1672759198077,0.60682554,16644.0,16643.0,0.6203]
[1672759198302,0.60682554,16644.0,16643.0,0.41892873]
[1672759198303,1.20764254,16644.0,16643.0,0.41892873]
[1672759198537,1.62841935,16644.0,16643.0,0.1203]
[1672759198763,1.76141935,16644.0,16643.0,0.1203]
[1672759198994,0.30600854,16644.0,16643.0,0.45766544]
[1672759199227,0.30600854,16644.0,16643.0,0.2401624]
[1672759199228,0.00600854,16644.0,16643.0,0.2401624]
[1672759199458,0.00600854,16644.0,16643.0,2.60423586]
[1672759199700,0.00600854,16644.0,16643.0,3.61418788]
[1672759199951,0.00600854,16644.0,16643.0,4.54062786]
[1672759200437,0.00600854,16644.0,16643.0,4.96142786]
[1672759200677,0.30736992,16649.0,16643.0,4.4268604]
[1672759200907,0.30736992,16649.0,16648.0,1.1406]
[1672759201152,0.31337665,16649.0,16648.0,0.48066002]
[1672759201380,0.40477472,16649.0,16648.0,0.2406]
[1672759201605,0.40477472,16649.0,16646.0,0.47327933]
[1672759201606,1.51464865,16649.0,16646.0,0.47327933]
[1672759201840,0.9025152,16648.0,16646.0,0.47827933]
[1672759202078,1.82369273,16647.0,16646.0,0.47827933]
[1672759202313,1.50742273,16647.0,16646.0,0.47827933]
[1672759202801,1.50742273,16647.0,16646.0,0.40032346]
[1672759203036,0.90671473,16647.0,16646.0,0.1203]
[1672759203501,1.50742273,16647.0,16645.0,1.22573471]
[1672759203738,0.62227673,16646.0,16645.0,0.9]
[1672759204196,0.92227673,16646.0,16645.0,1.31978]
[1672759204446,0.00600673,16646.0,16645.0,1.62086128]
[1672759204697,0.00600673,16646.0,16645.0,1.62092368]
[1672759205220,0.00600673,16646.0,16645.0,1.4396424]
[1672759205743,0.88985609,16651.0,16645.0,2.7499371]
[1672759206011,0.88985609,16651.0,16650.0,0.9]
[1672759206012,0.28927409,16651.0,16650.0,0.9]
[1672759206330,0.2952801,16651.0,16650.0,1.4409]
[1672759206597,0.2952801,16651.0,16650.0,1.68096002]
[1672759206883,0.2952801,16651.0,16650.0,1.4409]
[1672759207130,0.00600601,16651.0,16650.0,1.4409]
[1672759207385,0.00600601,16651.0,16650.0,1.56126238]
[1672759207921,0.00600601,16651.0,16650.0,1.96208591]
[1672759208181,0.00600601,16651.0,16650.0,2.40845634]
[1672759208440,0.00804228,16651.0,16650.0,2.94279072]
[1672759208703,0.02604228,16651.0,16650.0,3.02495502]
[1672759208980,0.02604228,16651.0,16650.0,3.55689072]
[1672759209251,0.02604228,16651.0,16650.0,3.85664108]
[1672759209526,0.02604228,16651.0,16650.0,4.245004]
[1672759209783,0.02604228,16651.0,16650.0,3.85664108]
[1672759211121,0.02604228,16651.0,16650.0,3.57547045]
[1672759211374,0.02604228,16651.0,16650.0,3.45837971]
[1672759211658,0.02604228,16651.0,16650.0,1.32807971]
[1672759212122,0.32604228,16651.0,16650.0,0.42807971]
[1672759212643,0.32604228,16651.0,16650.0,1.32807971]
[1672759213438,0.02604228,16651.0,16650.0,1.32814209]
[1672759213690,0.02604228,16651.0,16650.0,2.74882079]
[1672759213975,0.02604228,16651.0,16650.0,2.22108509]
[1672759214240,0.02604228,16651.0,16650.0,2.75302079]
[1672759215015,0.02604228,16651.0,16650.0,2.82168509]
[1672759215281,0.02604228,16651.0,16650.0,3.05084108]
[1672759215745,0.02604228,16651.0,16650.0,2.83589231]
[1672759215967,0.02604228,16651.0,16650.0,3.05084108]
[1672759216199,0.02604228,16651.0,16650.0,3.65144108]
[1672759216478,0.02604228,16651.0,16650.0,4.15144108]
[1672759217241,0.02604228,16651.0,16650.0,5.19354108]
[1672759218309,0.00784248,16651.0,16650.0,5.18854108]
[1672759218573,0.00884248,16651.0,16650.0,5.27054108]
[1672759220887,0.00884248,16651.0,16650.0,5.2884878]
[1672759221887,0.00884248,16651.0,16650.0,4.72924108]
[1672759222933,0.00884248,16651.0,16650.0,5.42924108]
[1672759224202,0.00884248,16651.0,16650.0,5.97064108]
[1672759224458,0.00884248,16651.0,16650.0,6.51374108]
[1672759225220,0.00784248,16651.0,16650.0,6.15813203]
[1672759225467,0.00784248,16651.0,16650.0,6.30213203]
[1672759225718,1.248e-05,16651.0,16650.0,6.15813203]
[1672759225964,1.248e-05,16651.0,16650.0,6.29913203]
[1672759226214,1.248e-05,16651.0,16650.0,6.31707875]
[1672759227746,1.248e-05,16651.0,16650.0,6.0492878]
[1672759229527,1.248e-05,16651.0,16650.0,6.5906878]
[1672759230045,1.248e-05,16651.0,16650.0,6.86325657]
[1672759230310,1.248e-05,16651.0,16650.0,7.04046908]
[1672759230816,1.248e-05,16651.0,16650.0,6.86325657]
[1672759231333,1.248e-05,16651.0,16650.0,6.72225657]
[1672759231595,1.248e-05,16651.0,16650.0,6.86225657]
[1672759232118,1.248e-05,16651.0,16650.0,6.5896878]
[1672759232625,1.248e-05,16651.0,16650.0,7.4885144]
[1672759233141,1.248e-05,16651.0,16650.0,7.7885144]
[1672759233403,2.608e-05,16652.0,16651.0,1.02395]
[1672759233683,0.00011,16654.0,16651.0,7.66492456]
[1672759233944,0.00011,16654.0,16653.0,3.3287]
[1672759234204,0.00611493,16654.0,16653.0,6.54965056]
[1672759234470,0.00611493,16654.0,16653.0,6.62481928]
[1672759234717,0.00256836,16655.0,16654.0,1.1277]
[1672759235197,0.00256836,16655.0,16654.0,6.4307627]
[1672759235198,0.00256836,16655.0,16654.0,7.0333187]
[1672759235463,0.0145775,16655.0,16654.0,7.0333187]
[1672759235728,0.0145775,16655.0,16654.0,7.7333187]
[1672759235986,0.00857293,16655.0,16654.0,7.8733187]
[1672759236318,0.0145775,16655.0,16654.0,7.8733187]
[1672759236511,0.00857293,16655.0,16654.0,7.8733187]
[1672759236768,0.0145775,16655.0,16654.0,7.8733187]
[1672759237048,0.00857293,16655.0,16654.0,7.8733187]
[1672759237303,0.0145775,16655.0,16654.0,7.87338106]
[1672759237588,0.00857293,16655.0,16654.0,7.87338106]
[1672759237857,0.0145775,16655.0,16654.0,7.37048106]
[1672759238135,0.00857293,16655.0,16654.0,7.37048106]
[1672759238631,0.00857293,16655.0,16654.0,6.83854536]
[1672759238884,0.0145775,16655.0,16654.0,7.28158106]
[1672759239185,0.00857293,16655.0,16654.0,7.28158106]
[1672759239457,0.0145775,16655.0,16654.0,7.28158106]
[1672759240004,0.00857293,16655.0,16654.0,7.28158106]
[1672759241348,0.0145775,16655.0,16654.0,7.28158106]
[1672759241913,0.02658664,16655.0,16654.0,7.28158106]
[1672759242180,0.0145775,16655.0,16654.0,6.60948106]
[1672759242432,0.00857293,16655.0,16654.0,5.44698106]
[1672759244734,0.00857293,16655.0,16654.0,6.11938106]
[1672759246588,0.00857293,16655.0,16654.0,6.29659357]
[1672759246856,0.00857293,16655.0,16654.0,4.97098106]
[1672759250002,0.00857293,16655.0,16654.0,5.4175261]
[1672759252114,0.00857293,16655.0,16654.0,5.43547282]
[1672759252622,0.00857293,16655.0,16654.0,5.79590679]
[1672759252912,0.00857293,16655.0,16654.0,5.43764725]
[1672759253201,0.00857293,16655.0,16654.0,3.9463323]
[1672759253553,0.00857293,16655.0,16654.0,3.76694536]
[1672759254064,0.00857293,16655.0,16654.0,3.76194536]
[1672759254317,0.00857293,16655.0,16654.0,4.29388106]
[1672759255610,0.00857293,16655.0,16654.0,3.76194536]
[1672759255898,0.00857293,16655.0,16654.0,3.33698206]
[1672759256305,0.00857293,16655.0,16654.0,1.8064637]
[1672759256538,0.00857293,16655.0,16654.0,1.7577487]
[1672759256981,0.00857293,16655.0,16654.0,1.1572927]
[1672759257204,0.30857293,16655.0,16654.0,1.1572927]
[1672759257462,0.90484293,16655.0,16654.0,1.1572927]
[1672759257725,0.90484293,16655.0,16654.0,0.84]
[1672759257992,0.28857293,16655.0,16654.0,0.7]
[1672759258249,0.01600457,16655.0,16654.0,0.7]
[1672759259011,0.01600457,16655.0,16654.0,1.00872]
[1672759259012,0.01600457,16655.0,16654.0,1.50872]
[1672759259537,0.00600457,16655.0,16654.0,2.10923836]
[1672759259799,0.01600457,16655.0,16654.0,2.10923836]
[1672759260084,0.01600457,16655.0,16654.0,2.15795336]
[1672759260330,0.01600457,16655.0,16654.0,2.75840936]
[1672759261392,0.01600457,16655.0,16654.0,3.35886536]
[1672759262743,0.00600457,16655.0,16654.0,3.35886536]
[1672759263006,0.01600457,16655.0,16654.0,3.35886536]
[1672759263265,0.00600457,16655.0,16654.0,3.35886536]
[1672759263530,0.00600457,16655.0,16654.0,3.89080106]
[1672759263781,0.00600457,16655.0,16654.0,3.35886536]
[1672759263782,0.01600457,16655.0,16654.0,3.35886536]
[1672759264083,0.00600457,16655.0,16654.0,3.59836536]
[1672759264341,0.01600457,16655.0,16654.0,3.598303]
[1672759264621,0.00600457,16655.0,16654.0,3.598303]
[1672759264878,0.01600457,16655.0,16654.0,3.598303]
[1672759265133,0.01600457,16655.0,16654.0,4.1302387]
[1672759265697,0.01600457,16655.0,16654.0,4.30962564]
[1672759266204,0.01600457,16655.0,16654.0,4.57895817]
[1672759267269,0.03862662,16655.0,16654.0,4.57895817]
[1672759267519,0.02862662,16655.0,16654.0,4.57895817]
[1672759267766,0.02862662,16655.0,16654.0,4.72195817]
[1672759268046,0.02862662,16655.0,16654.0,4.72202053]
[1672759268555,0.02862662,16655.0,16654.0,5.08028007]
[1672759268799,0.02862662,16655.0,16654.0,4.90089313]
[1672759269569,0.02862662,16655.0,16654.0,4.72251124]
[1672759270085,0.02862662,16655.0,16654.0,4.45317871]
[1672759270348,0.02862662,16655.0,16654.0,3.27518589]
[1672759270620,0.02862662,16655.0,16654.0,1.52555889]
[1672759270864,0.02862662,16655.0,16654.0,1.46843859]
[1672759271114,0.02862662,16655.0,16654.0,1.14322]
[1672759271369,0.02862662,16655.0,16654.0,1.53732253]
[1672759271883,0.02862662,16655.0,16654.0,1.53856425]
[1672759272119,0.02862662,16655.0,16654.0,1.53732253]
[1672759272909,0.02862662,16655.0,16654.0,1.54582253]
[1672759275760,0.02862662,16655.0,16654.0,1.4373061]
[1672759277473,0.02862662,16655.0,16654.0,1.1370861]
[1672759278481,0.02862662,16655.0,16654.0,1.23337907]
[1672759278729,0.02862662,16655.0,16654.0,1.22837907]
[1672759278990,0.02862662,16655.0,16654.0,1.22844109]
[1672759279241,0.02862662,16655.0,16654.0,1.22837907]
[1672759289688,0.02862662,16655.0,16654.0,1.94913507]
[1672759290199,0.02862662,16655.0,16654.0,2.44913507]
[1672759291282,0.02862662,16655.0,16654.0,5.16681862]
[1672759291506,0.02862662,16655.0,16654.0,5.61464308]
[1672759291763,0.02862662,16655.0,16654.0,5.37458306]
[1672759292038,0.00203627,16656.0,16655.0,0.5]
[1672759292291,0.00203627,16656.0,16655.0,6.41562357]
[1672759292575,0.00804048,16656.0,16655.0,6.52511059]
[1672759292818,0.00304048,16656.0,16655.0,7.63911059]
[1672759293073,0.00304048,16656.0,16655.0,7.63911487]
[1672759293322,0.00304048,16656.0,16655.0,7.18945936]
[1672759293578,0.00304048,16656.0,16655.0,7.63911092]
[1672759294405,0.00239853,16659.0,16656.0,0.5]
[1672759294650,0.00239853,16659.0,16658.0,2.45947]
[1672759294902,0.00239853,16659.0,16658.0,4.309097]
[1672759295396,0.00239853,16659.0,16658.0,2.596673]
[1672759295397,0.00239853,16659.0,16658.0,1.987861]
[1672759295662,0.00840166,16659.0,16658.0,2.687931]
[1672759295921,0.00840166,16659.0,16658.0,3.07816971]
[1672759296175,0.00840166,16659.0,16658.0,3.22216971]
[1672759296461,0.00840166,16659.0,16658.0,3.82248171]
[1672759296724,0.00840166,16659.0,16658.0,3.83098171]
[1672759297493,0.00840166,16659.0,16658.0,4.43129371]
[1672759297812,0.00840166,16659.0,16658.0,4.641367]
[1672759298593,0.00840166,16659.0,16658.0,4.641429]
[1672759299126,0.00840166,16659.0,16658.0,4.49027429]
[1672759299384,0.00840166,16659.0,16658.0,5.02500575]
[1672759299644,0.00840166,16659.0,16658.0,4.42469375]
[1672759301025,0.00840166,16659.0,16658.0,4.041117]
[1672759301273,0.00840166,16659.0,16658.0,4.541117]
[1672759301497,0.00840166,16659.0,16658.0,4.86099003]
[1672759301744,0.00840166,16659.0,16658.0,4.541117]
[1672759302072,0.00840166,16659.0,16658.0,5.141429]
[1672759303560,0.00840166,16659.0,16658.0,5.661729]
[1672759304591,0.00840166,16659.0,16658.0,5.517729]
[1672759304846,0.00840166,16659.0,16658.0,5.661729]
[1672759305106,0.00840166,16659.0,16658.0,5.517729]
[1672759305347,0.00840166,16659.0,16658.0,5.659729]
[1672759305854,0.00840166,16659.0,16658.0,2.75608229]
[1672759306115,0.00840166,16659.0,16658.0,2.242]
[1672759306376,0.00840166,16659.0,16658.0,2.12962563]
[1672759306634,1.20895366,16659.0,16658.0,2.12962563]
[1672759306916,1.50895366,16659.0,16658.0,2.12962563]
[1672759307400,1.50895366,16659.0,16658.0,1.28762563]
[1672759307647,1.20895366,16659.0,16658.0,1.43062563]
[1672759308410,1.50888706,16659.0,16658.0,1.43062563]
[1672759310763,2.12515706,16659.0,16658.0,1.43062563]
[1672759310936,1.50888706,16659.0,16658.0,1.43062563]
[1672759311485,1.20888706,16659.0,16658.0,1.43062563]
[1672759316519,1.20888706,16659.0,16658.0,2.13062563]
[1672759317616,1.50888706,16659.0,16658.0,2.13062563]
[1672759317883,1.20888706,16659.0,16658.0,2.13062563]
[1672759318424,1.00888706,16659.0,16658.0,2.13062563]
[1672759318928,1.30888706,16659.0,16658.0,2.13062563]
[1672759319205,2.10406257,16659.0,16658.0,1.43062563]
[1672759319740,1.30888706,16659.0,16658.0,0.53062563]
[1672759320237,1.62515706,16659.0,16658.0,1.43062563]
[1672759320498,1.00888706,16659.0,16658.0,1.43062563]
[1672759320759,1.00888706,16659.0,16658.0,2.13062563]
[1672759321298,1.30888706,16659.0,16658.0,2.13062563]
[1672759322364,1.00888706,16659.0,16658.0,2.13062563]
[1672759322852,1.00888706,16659.0,16658.0,2.43076563]
[1672759323111,1.00388706,16659.0,16658.0,2.43076563]
[1672759323364,0.40361106,16659.0,16658.0,2.93076563]
[1672759324398,0.40361106,16659.0,16658.0,2.43076563]
[1672759324655,0.88251657,16659.0,16658.0,2.43076563]
[1672759324929,1.1505264,16659.0,16658.0,2.43076563]
[1672759325189,1.49878657,16659.0,16658.0,2.43076563]
[1672759325721,0.88251657,16659.0,16658.0,2.43076563]
[1672759326492,0.58251657,16659.0,16658.0,2.43076563]
[1672759326722,0.8505264,16659.0,16658.0,2.43076563]
[1672759327607,0.58251657,16659.0,16658.0,2.43076563]
[1672759328835,0.8505264,16659.0,16658.0,2.43076563]
[1672759329086,0.58251657,16659.0,16658.0,2.43076563]
[1672759330115,0.58251657,16659.0,16658.0,2.93076563]
[1672759330367,0.00600313,16659.0,16658.0,2.93926563]
[1672759330626,0.00600313,16659.0,16658.0,4.25908963]
[1672759331643,0.00600313,16659.0,16658.0,3.871464]
[1672759331906,0.00600313,16659.0,16658.0,4.520463]
[1672759332158,0.00600313,16659.0,16658.0,4.640763]
[1672759333218,0.00600313,16659.0,16658.0,5.05828049]
[1672759333473,0.00600313,16659.0,16658.0,4.640763]
[1672759333748,0.00600313,16659.0,16658.0,5.05838753]
[1672759334061,0.00600313,16659.0,16658.0,5.23826558]
[1672759334255,0.00600313,16659.0,16658.0,4.94094105]
[1672759334514,0.00600313,16659.0,16658.0,5.21075813]
[1672759334772,0.00600313,16659.0,16658.0,4.761063]
[1672759335531,0.00600313,16659.0,16658.0,4.94094105]
[1672759336034,0.00600313,16659.0,16658.0,4.761063]
[1672759336283,0.00600313,16659.0,16658.0,4.94094105]
[1672759336617,0.00600313,16659.0,16658.0,4.761063]
[1672759337543,0.00600313,16659.0,16658.0,4.761125]
[1672759338043,0.00600313,16659.0,16658.0,2.960189]
[1672759338292,0.00600313,16659.0,16658.0,1.743]
[1672759338544,0.62227313,16659.0,16658.0,1.743]
[1672759338819,0.80117864,16659.0,16658.0,1.743]
[1672759339090,1.72658344,16659.0,16658.0,1.743]
[1672759339319,2.14795393,16659.0,16658.0,1.743]
[1672759340583,2.92690315,16659.0,16658.0,1.743]
[1672759340832,3.25767424,16659.0,16658.0,1.743]
[1672759341092,3.78802859,16659.0,16658.0,0.843]
[1672759341361,3.01057445,16659.0,16658.0,0.843]
[1672759341687,0.34078722,16657.0,16656.0,0.9]
[1672759341886,2.95459911,16657.0,16656.0,0.9]
[1672759342145,4.16129824,16657.0,16656.0,0.9]
[1672759342405,4.16143626,16657.0,16656.0,0.9]
[1672759342671,4.15960491,16657.0,16654.0,1.28025016]
[1672759342967,0.17988371,16655.0,16654.0,1.28010016]
[1672759343184,2.00299684,16655.0,16654.0,1.28010016]
[1672759343443,1.20684313,16655.0,16654.0,0.9]
[1672759344297,1.33884313,16655.0,16654.0,0.9]
[1672759345055,0.13800313,16655.0,16654.0,0.9]
[1672759345311,0.13800313,16655.0,16654.0,1.56397506]
[1672759345580,0.13800313,16655.0,16654.0,1.57247506]
[1672759345837,0.13800313,16655.0,16654.0,2.04771802]
[1672759346087,0.13800313,16655.0,16654.0,2.33542853]
[1672759346336,0.13800313,16655.0,16654.0,2.33536651]
[1672759346920,0.00600313,16655.0,16654.0,2.33536651]
[1672759347091,0.00600313,16655.0,16654.0,1.73491051]
[1672759347361,0.73242313,16655.0,16654.0,1.19821051]
[1672759347864,0.60642313,16655.0,16654.0,1.49644051]
[1672759349103,0.73242313,16655.0,16654.0,1.19821051]
[1672759349342,1.03242313,16655.0,16654.0,1.19821051]
[1672759349837,0.62852313,16655.0,16654.0,1.19821051]
[1672759350092,1.22894313,16655.0,16654.0,0.002]
[1672759350335,3.20974825,16655.0,16654.0,0.002]
[1672759350570,3.83843728,16655.0,16654.0,0.002]
[1672759350825,3.38855252,16655.0,16654.0,0.002]
[1672759351065,3.56899912,16655.0,16654.0,0.002]
[1672759351306,3.38851779,16655.0,16654.0,0.002]
[1672759351801,3.56811719,16655.0,16654.0,0.002]
[1672759352327,3.20886632,16655.0,16654.0,0.002]
[1672759352821,3.20886632,16655.0,16654.0,0.902]
[1672759353058,2.59259632,16655.0,16654.0,0.902]
[1672759353321,3.20886632,16655.0,16654.0,0.902]
[1672759353803,2.59259632,16655.0,16654.0,0.902]
[1672759354051,3.20886632,16655.0,16654.0,0.902]
[1672759354279,2.00896253,16655.0,16654.0,0.902]
[1672759354541,2.62523253,16655.0,16654.0,0.902]
[1672759354779,2.98121576,16655.0,16654.0,0.902]
[1672759355269,2.36494576,16655.0,16654.0,0.902]
[1672759355510,2.98121576,16655.0,16654.0,0.902]
[1672759355771,2.36494576,16655.0,16654.0,0.902]
[1672759356021,2.80161636,16655.0,16654.0,0.902]
[1672759356263,1.82936313,16655.0,16654.0,0.902]
[1672759356995,0.32852313,16655.0,16654.0,1.49130713]
[1672759357229,0.13200313,16655.0,16654.0,1.67175711]
[1672759359980,0.11200313,16655.0,16654.0,1.55145711]
[1672759360715,0.71242313,16655.0,16654.0,1.55145711]
[1672759361215,1.01242313,16655.0,16654.0,1.55145711]
[1672759361691,1.61284313,16655.0,16654.0,1.25124711]
[1672759364681,1.31284313,16655.0,16654.0,1.25124711]
[1672759365177,1.61284313,16655.0,16654.0,1.25124711]
[1672759370232,0.71242313,16655.0,16654.0,1.37074711]
[1672759370484,0.11200313,16655.0,16654.0,1.37924711]
[1672759370750,0.11200313,16655.0,16654.0,1.750756]
[1672759370990,0.11200313,16655.0,16654.0,2.851212]
[1672759371699,0.00600313,16655.0,16654.0,2.849212]
[1672759372194,0.09700313,16655.0,16654.0,2.902927]
[1672759372472,0.09700313,16655.0,16654.0,4.58336954]
[1672759372745,0.09700313,16655.0,16654.0,4.60131626]
[1672759373013,0.00600313,16655.0,16654.0,4.05501626]
[1672759373278,0.08900313,16655.0,16654.0,4.76101626]
[1672759373533,0.00600313,16655.0,16654.0,4.75501626]
[1672759373768,0.02500313,16655.0,16654.0,4.34052972]
[1672759374016,0.02500313,16655.0,16654.0,3.722127]
[1672759374768,0.00600313,16655.0,16654.0,3.719127]
[1672759375017,0.01500313,16655.0,16654.0,3.776127]
[1672759376268,0.01500313,16655.0,16654.0,3.076127]
[1672759376517,0.01500313,16655.0,16654.0,3.676583]
[1672759376777,0.01500313,16655.0,16654.0,3.076127]
[1672759377048,0.01500313,16655.0,16654.0,3.676583]
[1672759377795,0.01500313,16655.0,16654.0,4.376583]
[1672759378054,0.01500313,16655.0,16654.0,4.776583]
[1672759378312,0.01500313,16655.0,16654.0,5.37442308]
[1672759378815,0.01500313,16655.0,16654.0,5.64424016]
[1672759379805,0.01500313,16655.0,16654.0,6.00399626]
[1672759380073,0.01500313,16655.0,16654.0,5.46631821]
[1672759380327,0.34078722,16657.0,16655.0,0.515]
[1672759380328,0.21633586,16657.0,16655.0,0.515]
[1672759380579,0.21633586,16657.0,16656.0,6.05543858]
[1672759380580,0.14423062,16657.0,16656.0,6.05543858]
[1672759380850,0.14423062,16657.0,16656.0,6.32500014]
[1672759381097,0.15623832,16657.0,16656.0,6.32500014]
[1672759381340,0.07057473,16657.0,16656.0,6.32500014]
[1672759381586,0.0029962,16660.0,16657.0,0.5]
[1672759381836,0.0029962,16660.0,16659.0,1.94068]
[1672759382109,0.0029962,16660.0,16659.0,3.189916]
[1672759382432,0.00899897,16660.0,16659.0,3.149732]
[1672759382874,0.01799897,16660.0,16659.0,3.149732]
[1672759383355,0.01799897,16660.0,16659.0,3.750008]
[1672759383913,0.00899897,16660.0,16659.0,3.750008]
[1672759384116,0.00899897,16660.0,16659.0,3.759008]
[1672759384117,0.01799897,16660.0,16659.0,3.759008]
[1672759384360,0.01799897,16660.0,16659.0,4.10688326]
[1672759384621,0.01799897,16660.0,16659.0,4.10824949]
[1672759384872,0.01799897,16660.0,16659.0,3.807688]
[1672759385120,0.01799897,16660.0,16659.0,4.12578713]
[1672759385847,0.01799897,16660.0,16659.0,3.807688]
[1672759386374,0.01799897,16660.0,16659.0,3.759008]
[1672759386634,0.01799897,16660.0,16659.0,3.807688]
[1672759387161,0.01799897,16660.0,16659.0,4.307688]
[1672759387657,0.01799897,16660.0,16659.0,5.007688]
[1672759388160,0.01799897,16660.0,16659.0,5.90884802]
[1672759388412,0.01799897,16660.0,16659.0,6.08088449]
[1672759389904,0.00899897,16660.0,16659.0,6.07188449]
[1672759390153,0.01799897,16660.0,16659.0,6.07988449]
[1672759390407,0.00899897,16660.0,16659.0,6.07188449]
[1672759390651,0.00999897,16660.0,16659.0,6.07188449]
[1672759392463,0.00999897,16660.0,16659.0,6.07194649]
[1672759394943,0.00999897,16660.0,16659.0,6.08989321]
[1672759395201,0.00999897,16660.0,16659.0,6.72159321]
[1672759395448,0.00999897,16660.0,16659.0,6.90136759]
[1672759395717,0.00999897,16660.0,16659.0,7.17500366]
[1672759395992,0.00999897,16660.0,16659.0,6.99522928]
[1672759396235,0.00999897,16660.0,16659.0,7.53763677]
[1672759396459,0.00899897,16660.0,16659.0,7.53763677]